bitfinex/quotes_SOLUSD_20240603
["timestamp","ask_amount","ask_price","bid_price","bid_amount"]
[1717384706665,13.2057,163.68,163.63,45.0]
[1717384706890,6.5807,163.67,163.63,45.0]
[1717384707058,13.2059,163.67,163.62,45.0]
[1717384707262,2.2607,163.66,163.62,45.0]
[1717384707577,8.886,163.66,163.58,4.32]
[1717384707756,8.886,163.66,163.59,4.32]
[1717384707957,10.9452,163.66,163.6,4.32]
[1717384708348,10.9452,163.66,163.58,60.0]
[1717384708663,6.6252,163.66,163.61,4.32]
[1717384708856,6.6252,163.66,163.62,45.0]
[1717384711068,10.4351,163.65,163.62,45.0]
[1717384711384,4.32,163.64,163.62,45.0]
[1717384711565,4.32,163.64,163.58,4.32]
[1717384711769,10.7405,163.64,163.59,45.0]
[1717384712373,6.4205,163.64,163.59,45.0]
[1717384713059,2.2607,163.67,163.59,49.32]
[1717384713276,4.32,163.65,163.59,49.32]
[1717384714160,2.2607,163.67,163.59,49.32]
[1717384714360,4.32,163.65,163.59,49.32]
[1717384716485,4.32,163.65,163.59,55.437]
[1717384717270,4.32,163.66,163.6,4.32]
[1717384717576,4.32,163.66,163.61,45.0]
[1717384718380,6.4205,163.68,163.61,105.0]
[1717384718564,6.4205,163.68,163.63,4.32]
[1717384718766,4.32,163.69,163.64,45.0]
[1717384720286,6.4205,163.72,163.64,45.0]
[1717384720591,4.32,163.69,163.64,45.0]
[1717384720890,4.32,163.67,163.64,45.0]
[1717384721187,4.32,163.68,163.64,45.0]
[1717384721488,4.32,163.68,163.63,45.0]
[1717384722163,11.1109,163.71,163.63,45.0]
[1717384722396,4.32,163.66,163.63,45.0]
[1717384724086,4.32,163.67,163.63,45.0]
[1717384724880,2.4302,163.7,163.62,45.0]
[1717384725076,4.32,163.67,163.62,45.0]
[1717384725494,0.17,163.69,163.62,45.0]
[1717384725799,4.32,163.67,163.62,45.0]
[1717384726475,2.4304,163.69,163.62,45.0]
[1717384726974,4.32,163.67,163.62,45.0]
[1717384731291,2.4304,163.69,163.62,45.0]
[1717384731492,4.32,163.67,163.62,45.0]
[1717384734298,2.4304,163.69,163.62,45.0]
[1717384734493,4.32,163.67,163.62,45.0]
[1717384739307,2.4304,163.69,163.61,49.32]
[1717384739488,4.32,163.67,163.61,49.32]
[1717384740985,0.17,163.69,163.59,9.17359643]
[1717384741209,4.32,163.63,163.58,9.17359643]
[1717384741518,2.2609,163.65,163.57,4.32]
[1717384741900,2.2609,163.65,163.57,13.49504286]
[1717384742392,2.2609,163.65,163.58,45.0]
[1717384747501,4.32,163.61,163.58,45.0]
[1717384747704,4.32,163.6,163.56,9.17479361]
[1717384747906,4.32,163.6,163.55,9.17479361]
[1717384748111,4.32,163.59,163.54,13.50974321]
[1717384748313,4.32,163.59,163.5,6.1422]
[1717384748314,2.2617,163.59,163.53,9.17479361]
[1717384748510,4.32,163.58,163.53,9.17479361]
[1717384748698,10.8906,163.58,163.53,9.17479361]
[1717384748901,4.32,163.57,163.52,9.17479361]
[1717384749412,2.2616,163.6,163.53,4.32]
[1717384749716,4.32,163.59,163.53,4.32]
[1717384749931,4.32,163.58,163.52,13.49479361]
[1717384750427,4.32,163.58,163.53,45.0]
[1717384751713,4.32,163.57,163.53,45.0]
[1717384751919,4.32,163.57,163.52,45.0]
[1717384753609,10.8616,163.57,163.52,45.0]
[1717384753916,10.8616,163.57,163.51,45.0]
[1717384754302,4.32,163.57,163.51,49.32]
[1717384757505,6.5819,163.58,163.51,49.32]
[1717384759127,6.5819,163.58,163.52,4.32]
[1717384759303,6.5819,163.58,163.53,45.0]
[1717384762613,2.262,163.57,163.53,45.0]
[1717384765419,2.262,163.57,163.52,45.0]
[1717384765623,13.1631,163.56,163.52,45.0]
[1717384766029,10.901,163.56,163.51,45.0]
[1717384767657,10.901,163.56,163.5,49.32]
[1717384771028,10.901,163.56,163.5,45.0]
[1717384771344,10.901,163.56,163.5,49.32]
[1717384773634,6.581,163.56,163.5,49.32]
[1717384774315,6.581,163.56,163.51,4.32]
[1717384774545,4.8629,163.61,163.52,49.32]
[1717384774546,4.32,163.58,163.52,49.32]
[1717384776727,6.5819,163.58,163.52,49.32]
[1717384777538,6.5819,163.58,163.52,45.0]
[1717384779126,4.32,163.57,163.52,45.0]
[1717384779321,10.9831,163.57,163.52,45.0]
[1717384780331,2.2619,163.58,163.52,45.0]
[1717384780548,6.5819,163.58,163.52,45.0]
[1717384780921,10.9269,163.57,163.52,45.0]
[1717384786842,6.5098,163.56,163.52,45.0]
[1717384789846,6.5098,163.56,163.51,45.0]
[1717384790625,6.6432,163.55,163.51,45.0]
[1717384790824,10.9632,163.55,163.5,45.0]
[1717384791334,6.6432,163.54,163.5,45.0]
[1717384792246,6.4229,163.54,163.49,9.17856492]
[1717384792441,10.7429,163.54,163.48,9.17856492]
[1717384792647,10.7429,163.54,163.48,13.49856492]
[1717384793235,6.4229,163.54,163.49,9.17856492]
[1717384793732,6.4229,163.54,163.5,45.0]
[1717384795330,6.4229,163.54,163.44,17.28]
[1717384795331,8.4982,163.49,163.47,9.17856492]
[1717384795535,10.5551,163.49,163.46,9.17856492]
[1717384795952,6.2351,163.48,163.44,9.17856492]
[1717384796262,10.5551,163.48,163.43,9.17856492]
[1717384796439,6.2351,163.48,163.42,13.49856492]
[1717384796853,10.5551,163.48,163.43,45.0]
[1717384797360,10.5551,163.48,163.43,54.17856492]
[1717384797666,10.5551,163.48,163.43,45.0]
[1717384799266,6.2351,163.48,163.43,45.0]
[1717384799751,6.2351,163.48,163.43,49.32]
[1717384799960,6.5831,163.49,163.43,49.32]
[1717384799961,6.5831,163.49,163.43,51.5839]
[1717384800159,6.1749,163.52,163.45,4.32]
[1717384800370,12.7576,163.52,163.46,51.5834]
[1717384800536,12.7576,163.52,163.46,45.0]
[1717384800738,12.7576,163.52,163.46,4.32]
[1717384800960,12.7576,163.52,163.47,45.0]
[1717384801465,8.4052,163.51,163.47,45.0]
[1717384801933,8.4052,163.51,163.46,45.0]
[1717384804437,22.0047,163.55,163.47,4.32]
[1717384804672,4.32,163.54,163.48,49.32]
[1717384805266,6.5824,163.54,163.48,49.32]
[1717384805947,2.2625,163.53,163.48,45.0]
[1717384806157,10.8329,163.52,163.48,45.0]
[1717384806369,10.8329,163.52,163.47,45.0]
[1717384807763,10.6559,163.5,163.47,45.0]
[1717384811279,6.3359,163.5,163.47,45.0]
[1717384811465,4.32,163.51,163.46,45.0]
[1717384811660,6.5827,163.52,163.46,49.32]
[1717384814357,10.6389,163.51,163.46,45.0]
[1717384815873,6.3189,163.51,163.46,45.0]
[1717384816073,6.3189,163.51,163.46,49.32]
[1717384819563,2.2628,163.51,163.46,49.32]
[1717384819883,8.9157,163.51,163.46,49.32]
[1717384820064,6.6529,163.5,163.46,45.0]
[1717384827286,2.2627,163.52,163.46,45.0]
[1717384827584,2.2627,163.52,163.46,49.32]
[1717384827753,22.26124855,163.6,163.46,49.32]
[1717384827754,22.4217,163.58,163.51,4.32]
[1717384827960,22.4217,163.58,163.52,49.32]
[1717384827961,6.4182,163.57,163.52,49.32]
[1717384829383,8.6802,163.57,163.52,49.32]
[1717384830383,2.2621,163.56,163.52,49.32]
[1717384830883,8.6802,163.57,163.52,49.32]
[1717384833267,2.262,163.57,163.52,49.32]
[1717384833978,2.262,163.57,163.53,4.32]
[1717384834185,2.2619,163.58,163.54,45.0]
[1717384835087,11.1431,163.61,163.54,49.32]
[1717384835290,2.2617,163.6,163.55,4.32]
[1717384835590,2.2617,163.6,163.56,45.0]
[1717384838281,4.32,163.59,163.56,45.0]
[1717384838474,10.8551,163.59,163.56,45.0]
[1717384838792,10.8551,163.59,163.52,4.32]
[1717384838991,10.8551,163.59,163.53,45.0]
[1717384839187,4.32,163.58,163.53,45.0]
[1717384839990,6.5819,163.58,163.53,45.0]
[1717384841089,13.2001,163.58,163.53,45.0]
[1717384841975,13.0374,163.57,163.53,45.0]
[1717384842177,8.7174,163.57,163.53,45.0]
[1717384842375,13.0374,163.57,163.52,45.0]
[1717384844286,2.2621,163.56,163.52,45.0]
[1717384845300,13.0373,163.57,163.52,45.0]
[1717384845881,8.7173,163.57,163.52,45.0]
[1717384846203,13.0373,163.57,163.52,45.0]
[1717384848287,13.0373,163.57,163.51,45.0]
[1717384850784,2.2621,163.56,163.51,45.0]
[1717384851098,12.7819,163.56,163.51,45.0]
[1717384854805,10.5198,163.56,163.51,45.0]
[1717384855308,6.1998,163.56,163.51,45.0]
[1717384858510,15.5233,163.61,163.51,45.0]
[1717384858795,4.32,163.53,163.47,13.49841558]
[1717384859000,4.32,163.53,163.47,4.32]
[1717384859197,6.5826,163.53,163.47,4.32]
[1717384861113,12.6433,163.53,163.48,45.0]
[1717384861329,6.0607,163.51,163.48,45.0]
[1717384861511,8.3236,163.51,163.48,45.0]
[1717384861719,12.6436,163.51,163.48,45.0]
[1717384862024,10.3807,163.51,163.45,4.32]
[1717384862601,12.6435,163.51,163.45,4.32]
[1717384863414,12.6435,163.51,163.46,45.0]
[1717384863617,10.6724,163.5,163.46,45.0]
[1717384863920,2.2632,163.49,163.44,10.437]
[1717384864123,8.6156,163.49,163.44,6.117]
[1717384864302,12.9356,163.49,163.43,10.437]
[1717384864703,12.9356,163.49,163.43,6.117]
[1717384865004,12.9356,163.49,163.43,10.437]
[1717384865917,6.3524,163.47,163.42,9.17841558]
[1717384866221,12.936,163.46,163.41,9.17841558]
[1717384866402,12.936,163.46,163.39,9.17841558]
[1717384866720,12.936,163.46,163.4,4.32]
[1717384866918,12.936,163.46,163.41,2.2641]
[1717384867722,12.936,163.46,163.41,47.2641]
[1717384868217,6.2771,163.51,163.44,4.32]
[1717384868428,6.2771,163.51,163.45,45.0]
[1717384868600,17.8244,163.53,163.47,4.32]
[1717384868918,17.8244,163.53,163.48,45.0]
[1717384868919,24.1015,163.53,163.48,45.0]
[1717384869427,8.5396,163.53,163.48,45.0]
[1717384869603,2.2627,163.52,163.48,45.0]
[1717384869807,8.5486,163.52,163.48,45.0]
[1717384870209,6.2859,163.52,163.48,49.32]
[1717384870521,2.2625,163.54,163.48,45.0]
[1717384870698,2.2623,163.55,163.49,4.32]
[1717384870901,2.2623,163.55,163.5,45.0]
[1717384872318,6.2859,163.56,163.5,45.0]
[1717384872523,12.8682,163.56,163.5,49.32]
[1717384872727,8.5482,163.56,163.51,4.32]
[1717384872901,8.5482,163.56,163.52,45.0]
[1717384873903,2.2623,163.55,163.52,45.0]
[1717384874127,8.548,163.56,163.52,45.0]
[1717384874332,6.2859,163.56,163.52,45.0]
[1717384874511,4.32,163.57,163.52,45.0]
[1717384875207,6.5821,163.57,163.52,45.0]
[1717384875608,2.2622,163.56,163.52,45.0]
[1717384875800,2.2623,163.55,163.52,45.0]
[1717384876418,4.32,163.54,163.47,9.18350487]
[1717384876618,6.5828,163.52,163.47,9.18350487]
[1717384876835,6.5828,163.52,163.46,5.04887178]
[1717384876836,2.2628,163.52,163.46,9.36887178]
[1717384877508,2.2628,163.52,163.44,9.18350487]
[1717384877728,2.2628,163.52,163.46,4.32]
[1717384879116,2.2626,163.53,163.47,4.32]
[1717384879314,6.5826,163.53,163.48,45.0]
[1717384879725,12.6649,163.53,163.48,45.0]
[1717384880115,8.3449,163.53,163.48,49.32]
[1717384883528,8.3449,163.53,163.48,45.0]
[1717384883832,8.3449,163.53,163.48,49.32]
[1717384884515,8.3449,163.53,163.48,45.0]
[1717384884714,2.2627,163.52,163.48,49.32]
[1717384885222,8.3449,163.53,163.48,45.0]
[1717384888140,2.2627,163.52,163.48,45.0]
[1717384888327,8.4526,163.52,163.48,45.0]
[1717384889610,8.4526,163.52,163.45,9.18350487]
[1717384889611,10.5099,163.52,163.45,9.18350487]
[1717384889810,10.5099,163.51,163.46,45.0]
[1717384890328,2.263,163.5,163.46,45.0]
[1717384890825,12.7728,163.51,163.46,45.0]
[1717384893223,2.263,163.5,163.45,49.32]
[1717384893429,8.5566,163.5,163.45,49.32]
[1717384894025,2.2631,163.49,163.45,45.0]
[1717384894247,8.5567,163.49,163.45,45.0]
[1717384895118,4.32,163.5,163.45,45.0]
[1717384895319,20.9058,163.52,163.46,4.32]
[1717384895524,2.2629,163.51,163.47,49.32]
[1717384896121,2.263,163.5,163.47,45.0]
[1717384896621,2.263,163.5,163.46,45.0]
[1717384897931,6.0304,163.51,163.46,49.32]
[1717384898320,6.0304,163.51,163.47,4.32]
[1717384898525,6.0304,163.51,163.48,45.0]
[1717384899842,2.2628,163.52,163.48,45.0]
[1717384901447,2.2629,163.51,163.48,45.0]
[1717384901629,2.2628,163.51,163.48,45.0]
[1717384907253,2.2628,163.51,163.47,45.0]
[1717384907429,4.32,163.52,163.47,45.0]
[1717384907735,2.2627,163.52,163.47,49.32]
[1717384908156,2.2628,163.51,163.47,49.32]
[1717384908940,2.2627,163.52,163.47,49.32]
[1717384909965,2.2628,163.51,163.47,49.32]
[1717384912856,2.2628,163.51,163.47,45.0]
[1717384913355,2.2627,163.52,163.47,49.32]
[1717384914237,2.2627,163.52,163.48,4.32]
[1717384914437,2.2627,163.52,163.49,45.0]
[1717384915341,2.2628,163.51,163.49,45.0]
[1717384915831,2.2628,163.51,163.48,45.0]
[1717384916032,2.2628,163.51,163.45,9.18119672]
[1717384916246,2.2628,163.51,163.46,4.32]
[1717384916768,2.2628,163.51,163.47,4.32]
[1717384917455,2.2628,163.51,163.48,45.0]
[1717384917758,2.2627,163.52,163.48,49.32]
[1717384918335,2.2628,163.51,163.48,45.0]
[1717384918536,2.2628,163.51,163.47,45.0]
[1717384919050,2.2628,163.51,163.48,4.32]
[1717384919257,2.2628,163.51,163.49,45.0]
[1717384920357,2.2627,163.52,163.49,45.0]
[1717384921263,22.5055,163.56,163.49,45.0]
[1717384921443,2.2625,163.54,163.49,49.32]
[1717384921644,2.2625,163.54,163.5,4.32]
[1717384921837,2.2625,163.54,163.51,45.0]
[1717384922249,2.2625,163.53,163.51,45.0]
[1717384922660,2.2625,163.53,163.5,45.0]
[1717384922857,2.2625,163.53,163.49,45.0]
[1717384923747,2.2625,163.53,163.49,49.32]
[1717384926461,2.2624,163.54,163.49,49.32]
[1717384928745,6.614,163.56,163.48,9.18076315]
[1717384929087,2.2629,163.5,163.47,9.18076315]
[1717384929366,2.2629,163.51,163.47,9.18076315]
[1717384929960,2.2629,163.51,163.46,13.50076315]
[1717384930455,2.2629,163.51,163.47,45.0]
[1717384935575,2.2629,163.51,163.46,13.50076315]
[1717384935576,6.2015,163.5,163.46,9.18076315]
[1717384935870,6.2015,163.5,163.45,13.50076315]
[1717384936054,6.2015,163.5,163.46,45.0]
[1717384936263,19.9267,163.54,163.46,45.0]
[1717384936475,2.2628,163.51,163.46,49.32]
[1717384936957,2.2628,163.51,163.46,58.50076315]
[1717384937152,6.5827,163.52,163.46,58.50076315]
[1717384938074,2.2627,163.52,163.47,4.32]
[1717384938478,2.2627,163.52,163.48,45.0]
[1717384945363,8.3887,163.52,163.48,45.0]
[1717384945886,8.3887,163.52,163.47,54.18087389]
[1717384946967,8.3887,163.52,163.48,9.18087389]
[1717384947175,8.3887,163.52,163.49,45.0]
[1717384950389,2.2628,163.51,163.49,45.0]
[1717384950691,2.2628,163.51,163.48,9.18007388]
[1717384952184,2.2628,163.51,163.46,4.32]
[1717384952382,2.2628,163.51,163.48,9.18008022]
[1717384953264,8.3887,163.52,163.48,9.18008022]
[1717384956986,16.4654,163.52,163.48,9.18008022]
[1717384957292,16.4654,163.52,163.47,45.0]
[1717384957293,8.4269,163.5,163.47,9.18008022]
[1717384957495,8.4269,163.5,163.45,9.18008022]
[1717384957695,8.4269,163.5,163.46,45.0]
[1717384958196,8.4269,163.5,163.45,45.0]
[1717384958374,8.4269,163.5,163.45,60.29708022]
[1717384958794,8.4269,163.5,163.45,51.117]
[1717384959391,6.5957,163.48,163.44,13.50008022]
[1717384959601,6.5957,163.48,163.44,9.18008022]
[1717384959998,10.9157,163.48,163.43,9.18008022]
[1717384960185,6.5957,163.48,163.43,13.50008022]
[1717384960386,6.5957,163.48,163.42,9.18008022]
[1717384960585,10.9157,163.48,163.42,9.18008022]
[1717384960888,10.9157,163.48,163.41,13.50008022]
[1717384961297,2.2634,163.47,163.41,10.437]
[1717384961598,2.2634,163.47,163.42,2.264]
[1717384961788,2.2634,163.47,163.42,6.584]
[1717384962104,8.859,163.48,163.43,6.5839]
[1717384962309,8.859,163.48,163.44,45.0]
[1717384962667,8.859,163.48,163.45,1.9400743]
[1717384963109,2.2634,163.47,163.44,45.0]
[1717384963874,2.2634,163.47,163.43,45.0]
[1717384966390,2.2635,163.46,163.43,45.0]
[1717384967090,2.2635,163.46,163.42,45.0]
[1717384968396,2.2637,163.45,163.42,45.0]
[1717384971701,2.2637,163.45,163.41,47.2642]
[1717384971904,2.2636,163.46,163.41,47.2642]
[1717384972085,2.2636,163.46,163.41,51.5842]
[1717384972291,0.17,163.49,163.41,45.0]
[1717384972603,2.2634,163.47,163.43,4.32]
[1717384975004,2.2635,163.46,163.43,4.32]
[1717384975397,4.66,163.49,163.41,8.3811]
[1717384975398,2.2637,163.45,163.42,4.32]
[1717384975699,2.2637,163.45,163.43,45.0]
[1717384976590,2.2637,163.45,163.42,45.0]
[1717384976785,8.4872,163.45,163.41,45.0]
[1717384976998,8.4872,163.45,163.41,4.32]
[1717384977299,2.2638,163.44,163.4,12.7013]
[1717384977708,2.264,163.43,163.38,2.2645]
[1717384977894,2.2638,163.44,163.39,12.7014]
[1717384978311,2.2638,163.44,163.4,45.0]
[1717384980494,8.2866,163.44,163.4,45.0]
[1717384981734,8.2867,163.43,163.4,45.0]
[1717384981922,2.2638,163.44,163.4,45.0]
[1717384983302,8.8139,163.44,163.4,45.0]
[1717384983932,2.264,163.43,163.4,45.0]
[1717384985232,8.8139,163.44,163.4,45.0]
[1717384987932,8.6395,163.44,163.4,45.0]
[1717384988226,6.3757,163.43,163.4,45.0]
[1717384988440,8.6397,163.43,163.4,45.0]
[1717384988823,12.9597,163.43,163.38,2.2646]
[1717384989020,8.6397,163.43,163.38,57.7016]
[1717384989227,6.3757,163.43,163.38,45.0]
[1717384989417,2.2643,163.41,163.38,45.0]
[1717384989933,8.6398,163.42,163.38,45.0]
[1717384990131,19.6292,163.43,163.36,2.2648]
[1717384990132,8.3439,163.41,163.36,2.2648]
[1717384990347,2.2643,163.4,163.35,2.265]
[1717384990520,8.344,163.4,163.35,2.265]
[1717384990833,6.0797,163.4,163.35,2.265]
[1717384991024,8.3441,163.4,163.35,2.265]
[1717384991615,4.32,163.41,163.24,8.81925112]
[1717384991616,6.4415,163.37,163.31,11.45099175]
[1717384991815,6.5849,163.36,163.3,11.45119175]
[1717384992144,2.2651,163.35,163.29,2.2658]
[1717384992728,2.2651,163.35,163.3,4.32]
[1717384992916,8.4103,163.35,163.3,4.32]
[1717384993254,12.7303,163.35,163.29,6.5858]
[1717384993728,8.4103,163.35,163.3,2.2657]
[1717384993916,2.2649,163.36,163.32,6.117]
[1717384994119,2.2649,163.36,163.33,6.117]
[1717384995241,2.2649,163.36,163.32,4.32]
[1717384995545,8.3086,163.39,163.35,4.32]
[1717384995756,15.0808,163.43,163.37,4.32]
[1717384995913,15.0808,163.43,163.38,4.32]
[1717384995914,17.3448,163.43,163.38,4.32]
[1717384996242,2.2637,163.45,163.4,4.32]
[1717384996438,2.2637,163.45,163.4,6.5843]
[1717384996616,2.2635,163.46,163.4,2.2643]
[1717384996935,2.2635,163.46,163.41,6.5842]
[1717384997147,2.2635,163.46,163.41,12.7012]
[1717384997436,6.1374,163.45,163.42,45.0]
[1717384997818,2.2635,163.46,163.42,45.0]
[1717384998023,2.2634,163.47,163.42,45.0]
[1717384998536,2.2635,163.46,163.42,49.32]
[1717384998731,2.2634,163.47,163.42,49.32]
[1717384999629,2.2634,163.47,163.42,51.584]
[1717385000544,2.2634,163.47,163.42,49.32]
[1717385000749,2.2635,163.46,163.42,49.32]
[1717385001050,2.2635,163.46,163.42,45.0]
[1717385001227,10.6403,163.45,163.37,9.18549175]
[1717385001552,6.5839,163.44,163.38,51.5846]
[1717385002436,6.5839,163.44,163.38,57.7016]
[1717385003126,6.5839,163.44,163.38,12.7016]
[1717385004027,6.5839,163.44,163.39,2.2645]
[1717385004341,6.5836,163.46,163.41,2.2642]
[1717385004548,6.5836,163.46,163.41,47.2642]
[1717385004761,2.2636,163.46,163.41,51.5842]
[1717385005128,2.2636,163.46,163.41,57.7012]
[1717385005533,8.5839,163.46,163.41,57.7012]
[1717385005940,2.2636,163.46,163.41,57.7012]
[1717385006647,2.2636,163.45,163.41,55.437]
[1717385009755,2.2638,163.44,163.41,55.437]
[1717385010061,2.2638,163.44,163.41,45.0]
[1717385010260,0.17,163.47,163.41,51.117]
[1717385010461,2.2635,163.46,163.41,53.3811]
[1717385010757,2.2637,163.45,163.41,45.0]
[1717385011856,6.496,163.49,163.42,4.32]
[1717385012030,0.17,163.48,163.43,45.0]
[1717385012237,6.496,163.49,163.43,45.0]
[1717385012437,2.2633,163.48,163.44,4.32]
[1717385012867,2.2633,163.48,163.43,51.5839]
[1717385014046,2.2634,163.47,163.43,49.32]
[1717385014270,2.2635,163.46,163.43,45.0]
[1717385015157,2.2634,163.47,163.43,45.0]
[1717385015669,6.5834,163.47,163.43,45.0]
[1717385015872,6.5834,163.47,163.42,47.264]
[1717385016651,2.2634,163.47,163.42,47.264]
[1717385016852,6.5834,163.47,163.42,47.264]
[1717385017381,2.2634,163.47,163.42,51.584]
[1717385018960,2.2634,163.47,163.43,2.2639]
[1717385019145,2.2634,163.47,163.43,47.2639]
[1717385020082,2.2632,163.48,163.43,51.5839]
[1717385020382,2.2634,163.47,163.43,47.2639]
[1717385020586,2.2634,163.47,163.43,45.0]
[1717385020870,12.7492,163.47,163.43,45.0]
[1717385021069,12.7492,163.47,163.42,47.264]
[1717385022047,2.2635,163.46,163.42,47.264]
[1717385022670,4.32,163.44,163.38,9.18549175]
[1717385022858,4.32,163.44,163.38,6.5845]
[1717385022859,2.264,163.43,163.38,6.5845]
[1717385023752,2.264,163.43,163.39,2.2644]
[1717385023954,12.8899,163.44,163.39,2.2644]
[1717385024575,10.6261,163.44,163.34,45.89549175]
[1717385024766,2.2641,163.42,163.38,2.2646]
[1717385025267,2.2641,163.42,163.38,47.2646]
[1717385025467,6.584,163.43,163.38,47.2646]
[1717385025770,12.8897,163.43,163.38,47.2646]
[1717385025951,2.2645,163.39,163.34,11.45132841]
[1717385026160,2.2645,163.39,163.33,13.50612841]
[1717385026350,2.2645,163.39,163.33,4.32]
[1717385026574,2.2645,163.39,163.34,2.2651]
[1717385027088,4.32,163.37,163.31,13.50612841]
[1717385027374,4.32,163.37,163.32,2.2654]
[1717385027677,4.32,163.37,163.32,8.3824]
[1717385028184,4.32,163.37,163.32,12.7024]
[1717385028350,4.32,163.37,163.33,45.0]
[1717385028665,6.5848,163.37,163.33,45.0]
[1717385030074,4.32,163.37,163.33,45.0]
[1717385031381,12.8092,163.38,163.33,45.0]
[1717385032083,2.2648,163.37,163.33,45.0]
[1717385036677,2.2648,163.37,163.33,47.2653]
[1717385037772,2.265,163.36,163.33,45.0]
[1717385038092,2.265,163.36,163.32,49.32]
[1717385038393,2.265,163.36,163.32,51.5854]
[1717385039069,2.2648,163.37,163.32,51.5854]
[1717385039284,6.6625,163.34,163.29,2.2658]
[1717385039473,2.2653,163.33,163.29,2.2658]
[1717385039988,10.9825,163.34,163.29,2.2658]
[1717385039989,13.2477,163.34,163.29,2.2658]
[1717385040382,13.2477,163.34,163.3,2.2657]
[1717385040770,6.6625,163.34,163.3,2.2657]
[1717385040965,13.2477,163.34,163.29,47.2658]
[1717385041196,2.2653,163.33,163.29,45.0]
[1717385041487,2.2653,163.33,163.28,2.266]
[1717385041488,13.0353,163.33,163.28,2.266]
[1717385041790,8.7153,163.33,163.28,6.586]
[1717385042476,6.4623,163.32,163.28,2.266]
[1717385042671,8.7277,163.32,163.28,2.266]
[1717385042889,8.7277,163.32,163.28,45.0]
[1717385042890,2.2656,163.31,163.28,45.0]
[1717385043673,8.7278,163.32,163.27,6.5861]
[1717385043874,8.7278,163.32,163.28,45.0]
[1717385044089,2.2656,163.31,163.26,2.2662]
[1717385044608,10.7823,163.32,163.26,6.5862]
[1717385044981,10.7823,163.32,163.27,45.0]
[1717385045185,8.2877,163.31,163.26,2.2662]
[1717385045482,8.2877,163.31,163.26,6.5862]
[1717385045483,8.4577,163.31,163.26,6.5862]
[1717385046195,8.4577,163.31,163.27,2.2661]
[1717385046196,6.192,163.31,163.27,2.2661]
[1717385046392,6.192,163.31,163.26,6.5862]
[1717385046393,8.4576,163.31,163.26,6.5862]
[1717385047202,6.4131,163.29,163.2,32.66761231]
[1717385047391,10.7331,163.29,163.25,2.2664]
[1717385047601,10.7331,163.29,163.24,45.0]
[1717385047894,6.4131,163.29,163.24,45.0]
[1717385048595,6.4131,163.29,163.24,47.2665]
[1717385048988,8.679,163.29,163.24,46.2665]
[1717385050888,6.4131,163.29,163.25,2.2664]
[1717385051193,6.4131,163.29,163.25,6.5864]
[1717385053591,6.4131,163.29,163.25,4.32]